[Event "Titled Tuesday Blitz April 4 Late 2023"]
[White "QuiesPrecatio"]
[Black "Kilic, Eray"]
[BlackFideId "44517173"]
[WhiteElo "2460"]
[BlackElo "2328"]
[Result "0-1"]
[Round "03"]
[TimeControl "180+2"]
[Date "2023.04.04"]
[WhiteClock "0:00:05"]
[BlackClock "0:00:53"]

1. Nf3 {[%clk 0:03:00]}  Nf6 {[%clk 0:02:58]} 2. g3 {[%clk 0:02:58]}  g6 {[%clk 0:02:58]} 3. Bg2 {[%clk 0:02:59]}  Bg7 {[%clk 0:02:58]} 4. O-O {[%clk 0:02:59]}  O-O {[%clk 0:02:59]} 5. d4 {[%clk 0:03:00]}  d6 {[%clk 0:03:00]} 6. c4 {[%clk 0:03:00]}  Nbd7 {[%clk 0:02:59]} 7. Qc2 {[%clk 0:03:00]}  e5 {[%clk 0:02:55]} 8. Rd1 {[%clk 0:02:59]}  exd4 {[%clk 0:02:55]} 9. Nxd4 {[%clk 0:03:00]}  Re8 {[%clk 0:02:55]} 10. Nc3 {[%clk 0:03:00]}  Nc5 {[%clk 0:02:55]} 11. e4 {[%clk 0:02:59]}  Ne6 {[%clk 0:02:55]} 12. Nde2 {[%clk 0:02:26]}  Qe7 {[%clk 0:02:50]} 13. f3 {[%clk 0:02:21]}  h5 {[%clk 0:02:50]} 14. Be3 {[%clk 0:02:20]}  h4 {[%clk 0:02:50]} 15. Rac1 {[%clk 0:02:19]}  hxg3 {[%clk 0:02:48]} 16. hxg3 {[%clk 0:02:19]}  Bd7 {[%clk 0:02:42]} 17. Nd5 {[%clk 0:02:14]}  Qd8 {[%clk 0:02:41]} 18. b4 {[%clk 0:02:01]}  a5 {[%clk 0:02:39]} 19. a3 {[%clk 0:02:01]}  b6 {[%clk 0:02:38]} 20. Qd2 {[%clk 0:01:50]}  axb4 {[%clk 0:02:37]} 21. axb4 {[%clk 0:01:50]}  Ra3 {[%clk 0:02:34]} 22. Bf2 {[%clk 0:01:23]}  Nxd5 {[%clk 0:02:25]} 23. cxd5 {[%clk 0:01:16]}  Ng5 {[%clk 0:02:25]} 24. Be3 {[%clk 0:01:04]}  Nh3+ {[%clk 0:01:54]} 25. Kh2 {[%clk 0:01:01]}  Rxe3 {[%clk 0:01:39]} 26. Qxe3 {[%clk 0:01:00]}  Ng5 {[%clk 0:01:40]} 27. Qd3 {[%clk 0:00:46]}  f5 {[%clk 0:01:32]} 28. Nd4 {[%clk 0:00:42]}  fxe4 {[%clk 0:01:30]} 29. fxe4 {[%clk 0:00:43]}  Be5 {[%clk 0:01:28]} 30. Kg1 {[%clk 0:00:23]}  Qf6 {[%clk 0:01:06]} 31. Nf3 {[%clk 0:00:22]}  Bxg3 {[%clk 0:01:04]} 32. Nxg5 {[%clk 0:00:10]}  Bf2+ {[%clk 0:01:03]} 33. Kh2 {[%clk 0:00:06]}  Qxg5 {[%clk 0:01:01]} 34. Rf1 {[%clk 0:00:04]}  Qf4+ {[%clk 0:01:00]} 35. Kh1 {[%clk 0:00:01]}  Qh4+ {[%clk 0:01:00]} 36. Bh3 {[%clk 0:00:01]}  Bxh3 {[%clk 0:00:58]} 37. Rxf2 {[%clk 0:00:02]}  Bf1+ {[%clk 0:00:56]} 38. Rh2 {[%clk 0:00:01]}  Qxh2+ {[%clk 0:00:57]} 39. Kxh2 {[%clk 0:00:01]}  Bxd3 {[%clk 0:00:57]} 40. Rxc7 {[%clk 0:00:02]}  Rxe4 {[%clk 0:00:58]} 41. Rc6 {[%clk 0:00:03]}  Rxb4 {[%clk 0:00:56]} 42. Rxd6 {[%clk 0:00:04]}  Kf7 {[%clk 0:00:54]} 43. Rd7+ {[%clk 0:00:05]}  Kf6 {[%clk 0:00:54]} 44. d6 {[%clk 0:00:05]}  Rd4 {[%clk 0:00:54]} 45. Rd8 {[%clk 0:00:05]}  Bf5 {[%clk 0:00:54]} 46. d7 {[%clk 0:00:04]}  Rxd7 {[%clk 0:00:54]} 47. Rb8 {[%clk 0:00:05]}  Rd6 {[%clk 0:00:54]} 48. Rb7 {[%clk 0:00:05]}  g5 {[%clk 0:00:53]} 0-1


[Site "https://www.chess.com"]

[Event "Titled Tuesday Blitz April 4 Late 2023"]
[White "Tworuszka, Michal"]
[Black "Weetik, Vjacheslav"]
[WhiteFideId "1117858"]
[BlackFideId "4153472"]
[WhiteElo "2460"]
[BlackElo "2469"]
[Result "1-0"]
[Round "03"]
[TimeControl "180+2"]
[Date "2023.04.04"]
[WhiteClock "0:00:08"]
[BlackClock "0:00:08"]

1. d4 {[%clk 0:02:55]}  Nf6 {[%clk 0:02:58]} 2. c4 {[%clk 0:02:54]}  e6 {[%clk 0:02:59]} 3. Nf3 {[%clk 0:02:51]}  d5 {[%clk 0:02:59]} 4. Nc3 {[%clk 0:02:51]}  Be7 {[%clk 0:02:59]} 5. Bf4 {[%clk 0:02:50]}  O-O {[%clk 0:02:59]} 6. e3 {[%clk 0:02:50]}  Nbd7 {[%clk 0:02:59]} 7. c5 {[%clk 0:02:49]}  c6 {[%clk 0:02:58]} 8. h3 {[%clk 0:02:47]}  b6 {[%clk 0:02:57]} 9. b4 {[%clk 0:02:46]}  a5 {[%clk 0:02:56]} 10. a3 {[%clk 0:02:46]}  Ba6 {[%clk 0:02:50]} 11. Bxa6 {[%clk 0:02:46]}  Rxa6 {[%clk 0:02:50]} 12. b5 {[%clk 0:02:25]}  cxb5 {[%clk 0:02:48]} 13. c6 {[%clk 0:02:25]}  b4 {[%clk 0:02:22]} 14. Nb5 {[%clk 0:02:14]}  bxa3 {[%clk 0:02:00]} 15. cxd7 {[%clk 0:02:05]}  Bb4+ {[%clk 0:02:00]} 16. Kf1 {[%clk 0:01:58]}  Qxd7 {[%clk 0:01:59]} 17. Qd3 {[%clk 0:01:55]}  Raa8 {[%clk 0:01:47]} 18. g4 {[%clk 0:01:37]}  Rfc8 {[%clk 0:01:40]} 19. Kg2 {[%clk 0:01:25]}  Ne4 {[%clk 0:01:40]} 20. Ne5 {[%clk 0:01:23]}  Qe7 {[%clk 0:01:38]} 21. f3 {[%clk 0:01:22]}  Nc3 {[%clk 0:01:33]} 22. Rhc1 {[%clk 0:01:13]}  Nxb5 {[%clk 0:01:21]} 23. Qxb5 {[%clk 0:01:12]}  f6 {[%clk 0:01:06]} 24. Nc6 {[%clk 0:01:09]}  Qf8 {[%clk 0:01:04]} 25. Qxb6 {[%clk 0:00:57]}  Kh8 {[%clk 0:00:50]} 26. Rc2 {[%clk 0:00:24]}  Re8 {[%clk 0:00:45]} 27. Rb1 {[%clk 0:00:13]}  h6 {[%clk 0:00:38]} 28. Nxb4 {[%clk 0:00:12]}  axb4 {[%clk 0:00:36]} 29. Bd6 {[%clk 0:00:10]}  a2 {[%clk 0:00:29]} 30. Ra1 {[%clk 0:00:09]}  Qf7 {[%clk 0:00:17]} 31. Bxb4 {[%clk 0:00:09]}  Reb8 {[%clk 0:00:16]} 32. Qc5 {[%clk 0:00:09]}  Ra4 {[%clk 0:00:15]} 33. Ba3 {[%clk 0:00:08]}  Rb3 {[%clk 0:00:13]} 34. Rcxa2 {[%clk 0:00:08]}  Rxe3 {[%clk 0:00:13]} 35. Qf8+ {[%clk 0:00:08]}  Qxf8 {[%clk 0:00:13]} 36. Bxf8 {[%clk 0:00:08]}  Rxd4 {[%clk 0:00:14]} 37. Ra7 {[%clk 0:00:07]}  Rd2+ {[%clk 0:00:13]} 38. Kg3 {[%clk 0:00:07]}  Rdd3 {[%clk 0:00:12]} 39. Bxg7+ {[%clk 0:00:07]}  Kh7 {[%clk 0:00:12]} 40. Rf1 {[%clk 0:00:07]}  Kg6 {[%clk 0:00:12]} 41. Bh8 {[%clk 0:00:07]}  h5 {[%clk 0:00:11]} 42. Rg7+ {[%clk 0:00:07]}  Kh6 {[%clk 0:00:12]} 43. Rf7 {[%clk 0:00:07]}  h4+ {[%clk 0:00:09]} 44. Kxh4 {[%clk 0:00:07]}  e5 {[%clk 0:00:08]} 45. Rxf6+ {[%clk 0:00:07]}  Kh7 {[%clk 0:00:09]} 46. Rf8 {[%clk 0:00:07]}  d4 {[%clk 0:00:08]} 47. g5 {[%clk 0:00:07]}  e4 {[%clk 0:00:08]} 48. Kh5 {[%clk 0:00:08]}  Rxf3 {[%clk 0:00:08]} 49. g6# {[%clk 0:00:08]} 1-0


[Site "https://www.chess.com"]

[Event "Titled Tuesday Blitz April 4 Late 2023"]
[White "Adewumi, Tanitoluwa"]
[Black "Rizzo, Tobias"]
[WhiteFideId "30966396"]
[BlackFideId "30942691"]
[WhiteElo "2714"]
[BlackElo "2460"]
[Result "1-0"]
[Round "03"]
[TimeControl "180+2"]
[Date "2023.04.04"]
[WhiteClock "0:00:39"]
[BlackClock "0:01:34"]

1. e4 {[%clk 0:03:00]}  c5 {[%clk 0:02:59]} 2. Nf3 {[%clk 0:02:54]}  e6 {[%clk 0:02:58]} 3. g3 {[%clk 0:02:46]}  Nc6 {[%clk 0:02:57]} 4. Bg2 {[%clk 0:02:43]}  g6 {[%clk 0:02:53]} 5. d4 {[%clk 0:02:41]}  cxd4 {[%clk 0:02:51]} 6. Nxd4 {[%clk 0:02:42]}  d6 {[%clk 0:02:51]} 7. Nc3 {[%clk 0:02:41]}  Nf6 {[%clk 0:02:50]} 8. O-O {[%clk 0:02:40]}  Be7 {[%clk 0:02:48]} 9. Nxc6 {[%clk 0:02:40]}  bxc6 {[%clk 0:02:48]} 10. e5 {[%clk 0:02:41]}  Nd5 {[%clk 0:02:48]} 11. exd6 {[%clk 0:02:41]}  Bxd6 {[%clk 0:02:46]} 12. Ne4 {[%clk 0:02:42]}  Be7 {[%clk 0:02:45]} 13. Bh6 {[%clk 0:02:41]}  Ba6 {[%clk 0:02:44]} 14. Qd4 {[%clk 0:02:37]}  Rg8 {[%clk 0:02:31]} 15. Rfd1 {[%clk 0:02:37]}  Qc7 {[%clk 0:02:27]} 16. c4 {[%clk 0:02:13]}  Nb4 {[%clk 0:02:22]} 17. Nf6+ {[%clk 0:02:00]}  Bxf6 {[%clk 0:02:17]} 18. Qxf6 {[%clk 0:02:01]}  Bxc4 {[%clk 0:02:03]} 19. Bf4 {[%clk 0:01:47]}  Qb7 {[%clk 0:01:47]} 20. Bg5 {[%clk 0:00:48]}  Bd5 {[%clk 0:01:37]} 21. a3 {[%clk 0:00:41]}  Bxg2 {[%clk 0:01:34]} 22. Qd8+ {[%clk 0:00:39]} 1-0


[Site "https://www.chess.com"]

[Event "Titled Tuesday Blitz April 4 Late 2023"]
[White "Ezat, Mohamed"]
[Black "Dzida, Kamil"]
[WhiteFideId "10600906"]
[BlackFideId "21828652"]
[WhiteElo "2386"]
[BlackElo "2139"]
[Result "1-0"]
[Round "03"]
[TimeControl "180+2"]
[Date "2023.04.04"]
[WhiteClock "0:01:06"]
[BlackClock "0:00:17"]

1. d4 {[%clk 0:03:00]}  Nf6 {[%clk 0:02:57]} 2. c4 {[%clk 0:03:00]}  g6 {[%clk 0:02:55]} 3. Nc3 {[%clk 0:02:57]}  d5 {[%clk 0:02:55]} 4. Bf4 {[%clk 0:02:56]}  c6 {[%clk 0:02:52]} 5. e3 {[%clk 0:02:53]}  Bg7 {[%clk 0:02:51]} 6. Nf3 {[%clk 0:02:50]}  Bg4 {[%clk 0:02:50]} 7. Be2 {[%clk 0:02:50]}  O-O {[%clk 0:02:49]} 8. O-O {[%clk 0:02:50]}  Nbd7 {[%clk 0:02:46]} 9. cxd5 {[%clk 0:02:49]}  Nxd5 {[%clk 0:02:43]} 10. Nxd5 {[%clk 0:02:48]}  cxd5 {[%clk 0:02:44]} 11. Rc1 {[%clk 0:02:48]}  Qb6 {[%clk 0:02:41]} 12. b3 {[%clk 0:02:41]}  Rfc8 {[%clk 0:02:37]} 13. h3 {[%clk 0:02:40]}  Bxf3 {[%clk 0:02:33]} 14. Bxf3 {[%clk 0:02:39]}  e6 {[%clk 0:02:34]} 15. Qd3 {[%clk 0:02:35]}  Bf8 {[%clk 0:02:25]} 16. e4 {[%clk 0:02:30]}  dxe4 {[%clk 0:02:25]} 17. Qxe4 {[%clk 0:02:30]}  Ba3 {[%clk 0:02:01]} 18. Rxc8+ {[%clk 0:02:26]}  Rxc8 {[%clk 0:02:02]} 19. Qxb7 {[%clk 0:02:26]}  Qxb7 {[%clk 0:02:03]} 20. Bxb7 {[%clk 0:02:26]}  Rc2 {[%clk 0:02:04]} 21. d5 {[%clk 0:02:00]}  exd5 {[%clk 0:01:25]} 22. Bxd5 {[%clk 0:01:59]}  Rxa2 {[%clk 0:01:26]} 23. Rd1 {[%clk 0:01:51]}  Nf6 {[%clk 0:01:12]} 24. Bc4 {[%clk 0:01:48]}  Bc5 {[%clk 0:01:12]} 25. Be3 {[%clk 0:01:44]}  Bxe3 {[%clk 0:01:06]} 26. fxe3 {[%clk 0:01:44]}  Kg7 {[%clk 0:01:01]} 27. Rd6 {[%clk 0:01:42]}  h5 {[%clk 0:00:47]} 28. Rc6 {[%clk 0:01:38]}  Rd2 {[%clk 0:00:47]} 29. Kf1 {[%clk 0:01:23]}  h4 {[%clk 0:00:45]} 30. Ra6 {[%clk 0:01:18]}  Rd7 {[%clk 0:00:35]} 31. Ke2 {[%clk 0:01:18]}  Ne4 {[%clk 0:00:32]} 32. Kf3 {[%clk 0:01:17]}  f5 {[%clk 0:00:32]} 33. Kf4 {[%clk 0:01:15]}  Rd2 {[%clk 0:00:17]} 34. Rxa7+ {[%clk 0:01:07]}  Kf6 {[%clk 0:00:17]} 35. Rf7# {[%clk 0:01:06]} 1-0


[Site "https://www.chess.com"]

[Event "Titled Tuesday Blitz April 4 Late 2023"]
[White "Averjanov, Alexey"]
[Black "Donskov, Anatoly"]
[WhiteFideId "14109867"]
[BlackFideId "24143413"]
[WhiteElo "2655"]
[BlackElo "2247"]
[Result "1-0"]
[Round "03"]
[TimeControl "180+2"]
[Date "2023.04.04"]
[WhiteClock "0:01:31"]
[BlackClock "0:00:01"]

1. d4 {[%clk 0:03:00]}  d5 {[%clk 0:02:58]} 2. c4 {[%clk 0:03:00]}  dxc4 {[%clk 0:02:57]} 3. Nf3 {[%clk 0:02:59]}  Nf6 {[%clk 0:02:56]} 4. e3 {[%clk 0:02:58]}  e6 {[%clk 0:02:56]} 5. Bxc4 {[%clk 0:02:58]}  c5 {[%clk 0:02:56]} 6. O-O {[%clk 0:02:58]}  a6 {[%clk 0:02:57]} 7. b3 {[%clk 0:02:52]}  b5 {[%clk 0:02:52]} 8. Bd3 {[%clk 0:02:51]}  Bb7 {[%clk 0:02:51]} 9. a4 {[%clk 0:02:50]}  b4 {[%clk 0:02:46]} 10. Bb2 {[%clk 0:02:50]}  Nbd7 {[%clk 0:02:45]} 11. Nbd2 {[%clk 0:02:49]}  cxd4 {[%clk 0:02:41]} 12. Nxd4 {[%clk 0:02:49]}  Bc5 {[%clk 0:02:24]} 13. Rc1 {[%clk 0:02:46]}  O-O {[%clk 0:02:23]} 14. Nc4 {[%clk 0:02:44]}  Rc8 {[%clk 0:01:38]} 15. Be2 {[%clk 0:02:39]}  h6 {[%clk 0:01:15]} 16. Bf3 {[%clk 0:02:38]}  Qc7 {[%clk 0:01:00]} 17. Qe2 {[%clk 0:02:38]}  Qb8 {[%clk 0:00:58]} 18. Rfd1 {[%clk 0:02:31]}  Bd5 {[%clk 0:00:38]} 19. e4 {[%clk 0:02:26]}  Bxc4 {[%clk 0:00:35]} 20. Qxc4 {[%clk 0:02:18]}  Ne5 {[%clk 0:00:35]} 21. Qxa6 {[%clk 0:02:13]}  Nxf3+ {[%clk 0:00:21]} 22. Nxf3 {[%clk 0:01:59]}  Nxe4 {[%clk 0:00:20]} 23. Rc2 {[%clk 0:01:50]}  Nxf2 {[%clk 0:00:10]} 24. Rxc5 {[%clk 0:01:35]}  Ne4 {[%clk 0:00:04]} 25. Rxc8 {[%clk 0:01:31]}  Rxc8 {[%clk 0:00:01]} 26. Qd3 {[%clk 0:01:31]} 1-0


[Site "https://www.chess.com"]

[Event "Titled Tuesday Blitz April 4 Late 2023"]
[White "Sieciechowicz, Marcin"]
[Black "Goltseva, Ekaterina"]
[WhiteFideId "1130170"]
[BlackFideId "24173770"]
[WhiteElo "2302"]
[BlackElo "2200"]
[Result "0-1"]
[Round "03"]
[TimeControl "180+2"]
[Date "2023.04.04"]
[WhiteClock "0:00:03"]
[BlackClock "0:00:04"]

1. d4 {[%clk 0:03:00]}  d5 {[%clk 0:02:53]} 2. c4 {[%clk 0:03:01]}  e5 {[%clk 0:02:52]} 3. dxe5 {[%clk 0:03:00]}  Ne7 {[%clk 0:02:53]} 4. cxd5 {[%clk 0:02:26]}  Qxd5 {[%clk 0:02:51]} 5. Qxd5 {[%clk 0:02:23]}  Nxd5 {[%clk 0:02:52]} 6. a3 {[%clk 0:02:23]}  Nc6 {[%clk 0:02:49]} 7. Nf3 {[%clk 0:02:20]}  Bg4 {[%clk 0:02:48]} 8. Bd2 {[%clk 0:02:16]}  Bxf3 {[%clk 0:02:39]} 9. exf3 {[%clk 0:02:16]}  Nxe5 {[%clk 0:02:39]} 10. Nc3 {[%clk 0:02:15]}  O-O-O {[%clk 0:02:38]} 11. Nxd5 {[%clk 0:02:11]}  Rxd5 {[%clk 0:02:39]} 12. Bc3 {[%clk 0:02:12]}  Bc5 {[%clk 0:02:19]} 13. Be2 {[%clk 0:02:12]}  Nd3+ {[%clk 0:02:13]} 14. Bxd3 {[%clk 0:02:10]}  Rxd3 {[%clk 0:02:14]} 15. Ke2 {[%clk 0:02:02]}  Rd7 {[%clk 0:02:08]} 16. Rhd1 {[%clk 0:02:01]}  Re8+ {[%clk 0:02:04]} 17. Kf1 {[%clk 0:02:01]}  f6 {[%clk 0:02:04]} 18. f4 {[%clk 0:01:57]}  c6 {[%clk 0:01:44]} 19. Rxd7 {[%clk 0:01:56]}  Kxd7 {[%clk 0:01:45]} 20. Rd1+ {[%clk 0:01:56]}  Kc7 {[%clk 0:01:45]} 21. Rd3 {[%clk 0:01:57]}  b5 {[%clk 0:01:41]} 22. h4 {[%clk 0:01:47]}  h5 {[%clk 0:01:35]} 23. f5 {[%clk 0:01:38]}  Bb6 {[%clk 0:01:27]} 24. Bd2 {[%clk 0:01:31]}  Re4 {[%clk 0:01:19]} 25. g3 {[%clk 0:01:29]}  Rd4 {[%clk 0:01:04]} 26. Bf4+ {[%clk 0:01:28]}  Kd7 {[%clk 0:00:59]} 27. Rc3 {[%clk 0:01:27]}  c5 {[%clk 0:00:54]} 28. f3 {[%clk 0:00:57]}  c4 {[%clk 0:00:39]} 29. Ke2 {[%clk 0:00:50]}  Rd5 {[%clk 0:00:33]} 30. g4 {[%clk 0:00:50]}  a5 {[%clk 0:00:24]} 31. b3 {[%clk 0:00:44]}  Bd4 {[%clk 0:00:21]} 32. bxc4 {[%clk 0:00:35]}  Bxc3 {[%clk 0:00:09]} 33. cxd5 {[%clk 0:00:35]}  Bb2 {[%clk 0:00:09]} 34. Bd2 {[%clk 0:00:29]}  Bxa3 {[%clk 0:00:02]} 35. Bxa5 {[%clk 0:00:28]}  Kd6 {[%clk 0:00:02]} 36. Bc3 {[%clk 0:00:18]}  Kxd5 {[%clk 0:00:03]} 37. g5 {[%clk 0:00:16]}  Be7 {[%clk 0:00:03]} 38. Kd3 {[%clk 0:00:14]}  fxg5 {[%clk 0:00:02]} 39. hxg5 {[%clk 0:00:12]}  Bxg5 {[%clk 0:00:02]} 40. Bxg7 {[%clk 0:00:12]}  h4 {[%clk 0:00:03]} 41. f6 {[%clk 0:00:10]}  Ke6 {[%clk 0:00:03]} 42. f7 {[%clk 0:00:07]}  Kxf7 {[%clk 0:00:03]} 43. Be5 {[%clk 0:00:08]}  Ke6 {[%clk 0:00:03]} 44. Bh2 {[%clk 0:00:07]}  Kd5 {[%clk 0:00:04]} 45. f4 {[%clk 0:00:07]}  Bf6 {[%clk 0:00:04]} 46. f5 {[%clk 0:00:07]}  b4 {[%clk 0:00:04]} 47. Kc2 {[%clk 0:00:05]}  h3 {[%clk 0:00:04]} 48. Bg1 {[%clk 0:00:04]}  Kc4 {[%clk 0:00:03]} 49. Kb1 {[%clk 0:00:04]}  b3 {[%clk 0:00:04]} 50. Bh2 {[%clk 0:00:04]}  b2 {[%clk 0:00:04]} 51. Kc2 {[%clk 0:00:04]}  Kd5 {[%clk 0:00:03]} 52. Kb1 {[%clk 0:00:04]}  Ke4 {[%clk 0:00:04]} 53. Kc2 {[%clk 0:00:03]}  Kxf5 {[%clk 0:00:04]} 0-1


[Site "https://www.chess.com"]

[Event "Titled Tuesday Blitz April 4 Late 2023"]
[White "Urbina Perez, Juan Antonio"]
[Black "Martins, Bruno Andre Leite"]
[WhiteFideId "2217368"]
[BlackFideId "1942255"]
[WhiteElo "2197"]
[BlackElo "2240"]
[Result "1/2-1/2"]
[Round "03"]
[TimeControl "180+2"]
[Date "2023.04.04"]
[WhiteClock "0:00:04"]
[BlackClock "0:00:10"]

1. c4 {[%clk 0:03:00]}  Nf6 {[%clk 0:02:52]} 2. d4 {[%clk 0:02:57]}  e6 {[%clk 0:02:52]} 3. Nf3 {[%clk 0:02:57]}  d5 {[%clk 0:02:49]} 4. g3 {[%clk 0:02:56]}  dxc4 {[%clk 0:02:49]} 5. Bg2 {[%clk 0:02:55]}  Bd7 {[%clk 0:02:50]} 6. Ne5 {[%clk 0:02:51]}  Bc6 {[%clk 0:02:45]} 7. Nxc6 {[%clk 0:02:47]}  Nxc6 {[%clk 0:02:46]} 8. e3 {[%clk 0:02:41]}  Qd7 {[%clk 0:02:44]} 9. O-O {[%clk 0:02:37]}  Rd8 {[%clk 0:02:42]} 10. Qc2 {[%clk 0:02:34]}  e5 {[%clk 0:02:39]} 11. Qxc4 {[%clk 0:02:29]}  exd4 {[%clk 0:02:39]} 12. exd4 {[%clk 0:02:29]}  Nxd4 {[%clk 0:02:32]} 13. Re1+ {[%clk 0:02:26]}  Be7 {[%clk 0:02:30]} 14. Be3 {[%clk 0:02:11]}  c5 {[%clk 0:02:26]} 15. Na3 {[%clk 0:01:49]}  O-O {[%clk 0:02:23]} 16. Rad1 {[%clk 0:01:42]}  Rfe8 {[%clk 0:02:15]} 17. Nc2 {[%clk 0:01:37]}  Bf8 {[%clk 0:02:10]} 18. Nxd4 {[%clk 0:01:34]}  cxd4 {[%clk 0:02:07]} 19. Rxd4 {[%clk 0:01:29]}  Qxd4 {[%clk 0:02:02]} 20. Bxd4 {[%clk 0:01:28]}  Rxe1+ {[%clk 0:02:01]} 21. Bf1 {[%clk 0:01:28]}  Ne4 {[%clk 0:01:52]} 22. Be3 {[%clk 0:01:00]}  Nd2 {[%clk 0:01:34]} 23. Bxd2 {[%clk 0:01:00]}  Rxd2 {[%clk 0:01:35]} 24. Kg2 {[%clk 0:00:58]}  Rxb2 {[%clk 0:01:34]} 25. Bd3 {[%clk 0:00:54]}  Re7 {[%clk 0:01:24]} 26. Qh4 {[%clk 0:00:44]}  g6 {[%clk 0:01:22]} 27. Qc4 {[%clk 0:00:42]}  Rb6 {[%clk 0:01:17]} 28. h4 {[%clk 0:00:41]}  Rd6 {[%clk 0:01:14]} 29. h5 {[%clk 0:00:40]}  Re5 {[%clk 0:01:07]} 30. hxg6 {[%clk 0:00:39]}  hxg6 {[%clk 0:01:05]} 31. Bc2 {[%clk 0:00:32]}  Rc6 {[%clk 0:01:02]} 32. Qd3 {[%clk 0:00:30]}  Re7 {[%clk 0:00:57]} 33. Ba4 {[%clk 0:00:28]}  Rf6 {[%clk 0:00:54]} 34. Bb3 {[%clk 0:00:28]}  Rc7 {[%clk 0:00:47]} 35. Qd8 {[%clk 0:00:20]}  Re7 {[%clk 0:00:44]} 36. Qd3 {[%clk 0:00:19]}  a6 {[%clk 0:00:39]} 37. Qd4 {[%clk 0:00:19]}  Rc6 {[%clk 0:00:29]} 38. Qd5 {[%clk 0:00:17]}  Rcc7 {[%clk 0:00:27]} 39. Qd3 {[%clk 0:00:16]}  Rc6 {[%clk 0:00:24]} 40. Qd5 {[%clk 0:00:16]}  Rec7 {[%clk 0:00:20]} 41. Qd3 {[%clk 0:00:16]}  Be7 {[%clk 0:00:12]} 42. Qd5 {[%clk 0:00:16]}  Bf6 {[%clk 0:00:12]} 43. Qd3 {[%clk 0:00:14]}  Kg7 {[%clk 0:00:13]} 44. Qd5 {[%clk 0:00:13]}  Re7 {[%clk 0:00:13]} 45. g4 {[%clk 0:00:13]}  Re5 {[%clk 0:00:12]} 46. Qxf7+ {[%clk 0:00:12]}  Kh6 {[%clk 0:00:11]} 47. Qf8+ {[%clk 0:00:11]}  Bg7 {[%clk 0:00:10]} 48. Qf4+ {[%clk 0:00:11]}  g5 {[%clk 0:00:10]} 49. Qf3 {[%clk 0:00:08]}  Re1 {[%clk 0:00:04]} 50. Qh3+ {[%clk 0:00:08]}  Kg6 {[%clk 0:00:04]} 51. Qh5+ {[%clk 0:00:09]}  Kf6 {[%clk 0:00:05]} 52. Qf7+ {[%clk 0:00:10]}  Ke5 {[%clk 0:00:05]} 53. Qf5+ {[%clk 0:00:10]}  Kd6 {[%clk 0:00:05]} 54. Qxg5 {[%clk 0:00:09]}  Bd4 {[%clk 0:00:04]} 55. Qd2 {[%clk 0:00:09]}  Re4 {[%clk 0:00:04]} 56. f3 {[%clk 0:00:05]}  Re7 {[%clk 0:00:02]} 57. Qxd4+ {[%clk 0:00:05]}  Kc7 {[%clk 0:00:03]} 58. Qf4+ {[%clk 0:00:05]}  Kb6 {[%clk 0:00:04]} 59. g5 {[%clk 0:00:05]}  Re2+ {[%clk 0:00:03]} 60. Kg3 {[%clk 0:00:05]}  Re1 {[%clk 0:00:03]} 61. Qd4+ {[%clk 0:00:05]}  Kc7 {[%clk 0:00:03]} 62. Bf7 {[%clk 0:00:03]}  Re7 {[%clk 0:00:01]} 63. g6 {[%clk 0:00:02]}  Rd6 {[%clk 0:00:01]} 64. Qc4+ {[%clk 0:00:02]}  Kd7 {[%clk 0:00:02]} 65. Qg4+ {[%clk 0:00:02]}  Kc7 {[%clk 0:00:02]} 66. g7 {[%clk 0:00:02]}  Rxf7 {[%clk 0:00:02]} 67. g8=Q {[%clk 0:00:03]}  Rfd7 {[%clk 0:00:03]} 68. Qxd7+ {[%clk 0:00:01]}  Rxd7 {[%clk 0:00:03]} 69. Qb3 {[%clk 0:00:02]}  b5 {[%clk 0:00:03]} 70. Qc3+ {[%clk 0:00:02]}  Kb6 {[%clk 0:00:02]} 71. Qf6+ {[%clk 0:00:02]}  Kc5 {[%clk 0:00:03]} 72. f4 {[%clk 0:00:03]}  Rd3+ {[%clk 0:00:02]} 73. Kg4 {[%clk 0:00:02]}  b4 {[%clk 0:00:03]} 74. Qe5+ {[%clk 0:00:03]}  Kc4 {[%clk 0:00:03]} 75. Qe4+ {[%clk 0:00:03]}  Kc3 {[%clk 0:00:04]} 76. f5 {[%clk 0:00:03]}  a5 {[%clk 0:00:04]} 77. Qxd3+ {[%clk 0:00:03]}  Kxd3 {[%clk 0:00:04]} 78. f6 {[%clk 0:00:04]}  a4 {[%clk 0:00:05]} 79. f7 {[%clk 0:00:05]}  b3 {[%clk 0:00:05]} 80. f8=Q {[%clk 0:00:06]}  Kc2 {[%clk 0:00:01]} 81. Qf2+ {[%clk 0:00:06]}  Kb1 {[%clk 0:00:01]} 82. axb3 {[%clk 0:00:06]}  axb3 {[%clk 0:00:02]} 83. Qe1+ {[%clk 0:00:05]}  Ka2 {[%clk 0:00:02]} 84. Qd2+ {[%clk 0:00:05]}  b2 {[%clk 0:00:03]} 85. Qa5+ {[%clk 0:00:05]}  Kb3 {[%clk 0:00:04]} 86. Qb5+ {[%clk 0:00:05]}  Kc2 {[%clk 0:00:04]} 87. Qc4+ {[%clk 0:00:05]}  Kd2 {[%clk 0:00:05]} 88. Qb4+ {[%clk 0:00:05]}  Kc2 {[%clk 0:00:06]} 89. Qc4+ {[%clk 0:00:05]}  Kd2 {[%clk 0:00:07]} 90. Qd4+ {[%clk 0:00:05]}  Kc2 {[%clk 0:00:08]} 91. Qe4+ {[%clk 0:00:05]}  Kc1 {[%clk 0:00:08]} 92. Qe1+ {[%clk 0:00:05]}  Kc2 {[%clk 0:00:08]} 93. Qe2+ {[%clk 0:00:05]}  Kc1 {[%clk 0:00:09]} 94. Qe3+ {[%clk 0:00:05]}  Kc2 {[%clk 0:00:09]} 95. Qc5+ {[%clk 0:00:05]}  Kd2 {[%clk 0:00:09]} 96. Qb4+ {[%clk 0:00:04]}  Kc2 {[%clk 0:00:10]} 97. Qc4+ {[%clk 0:00:04]} 1/2-1/2


[Site "https://www.chess.com"]